{"text_format":"3","workbook":"xlsx","n_sheets":3,"sheets":["Inizio","Settore budget","Dati"],"not_rendered":{"charts":1,"defined_names":5},"read":"whole","date_system":"1900"}

{"sheet":"Inizio","index":0,"n_rows":7,"n_cols":2,"rows_kept":7}
[null,"Informazioni sul modello"]
[null,"Usando questo modello è possibile tenere traccia delle spese e dei risparmi mensili."]
[null,"Per calcolare i risparmi immettere nella tabella i dettagli delle spese e delle entrate di ogni mese."]
[null,"Il grafico ad anello con le spese e i risparmi viene automaticamente aggiornato."]
[null,"Nota:"]
[null,"Altre istruzioni sono state fornite nella colonna A nel foglio di lavoro SETTORE BUDGET. Questo testo è stato nascosto intenzionalmente. Per rimuovere il testo, selezionare la colonna A, quindi scegliere ELIMINA. Per visualizzare il testo, selezionare la colonna A, quindi modificare il colore del carattere."]
[null,"Per altre informazioni sulla tabella, premere MAIUSC, quindi F10 nella tabella, selezionare l'opzione TABELLA, quindi selezionare TESTO ALTERNATIVO."]

{"sheet":"Settore budget","index":1,"n_rows":23,"n_cols":7,"rows_kept":23,"merged":[[0,1,0,2],[0,3,0,6],[1,2,4,4]]}
["Creare un settore budget in questo foglio di lavoro. Il titolo del foglio di lavoro si trova nella cella a destra e il suggerimento nella cella D1. Nelle celle di questa colonna sono disponibili altre istruzioni utili per l'uso di questo foglio di lavoro. Freccia verso il basso per iniziare.","Settore budget",null,"Compilare la tabella in questo modello. Il grafico mostra le spese mensili in relazione alle entrate. Inoltre consente di calcolare le percentuali che mostrano quanto si risparmierà o si è risparmiato."]
["L’etichetta Entrate mensili è nella cella a destra, il grafico ad anello con le spese e i risparmi nella cella C2 e l’etichetta Importo risparmi nella cella G2.","Mensile \nEntrate","Il grafico ad anello con la proporzione tra spese e risparmi è in questa cella.",{"$nulls":3},"Risparmi \nImporto"]
["Immettere le entrate mensili nella cella a destra. L’Importo dei risparmi è calcolato automaticamente nella cella G3. L'istruzione successiva si trova nella cella A6.",{"v":5738,"d":"€ 5,738"},{"$nulls":4},{"$f":"Risparmi","v":{"v":2777,"d":"€ 2,777"}}]
[{"$nulls":6},"Valore calcolato \nautomaticamente"]
[]
["Immettere i dettagli nella tabella delle spese a partire dalla cella a destra.","Spese","Categoria","Importo","Frequenza","Importo mensile","% del totale"]
[null,"Assicurazione","Trasporti",{"v":300,"d":"€ 300"},"Semestrale",{"$f":"IF(Spese[[#This Row],[Importo]]>0,IF(Spese[[#This Row],[Frequenza]]<>\"\",ROUND(IF(Spese[[#This Row],[Frequenza]]=\"Mensile\",Spese[Importo],IF(Spese[[#This Row],[Frequenza]]=\"Settimanale\",Spese[[#This Row],[Importo]]*4,IF(Spese[[#This Row],[Frequenza]]=\"Trimestrale\",Spese[[#This Row],[Importo]]/3,IF(Spese[[#This Row],[Frequenza]]=\"Semestrale\",Spese[[#This Row],[Importo]]/6,IF(Spese[[#This Row],[Frequenza]]=\"Annuale\",Spese[[#This Row],[Importo]]/12,IF(Spese[[#This Row],[Frequenza]]=\"Settimane alterne\",Spese[[#This Row],[Importo]]*2,IF(Spese[[#This Row],[Frequenza]]=\"Mesi alterni \",Spese[[#This Row],[Importo]]/2,\"\"))))))),0),\"\"),\"\")","v":{"v":50,"d":"€ 50"}},{"$f":"IF(Spese[Importo mensile]<>\"\",Spese[Importo mensile]/Entrate,\"\")","v":{"v":0.00871383757406762,"d":"1%"}}]
[null,"Benzina","Trasporti",{"v":25,"d":"€ 25"},"Settimanale",{"$f":"IF(Spese[[#This Row],[Importo]]>0,IF(Spese[[#This Row],[Frequenza]]<>\"\",ROUND(IF(Spese[[#This Row],[Frequenza]]=\"Mensile\",Spese[Importo],IF(Spese[[#This Row],[Frequenza]]=\"Settimanale\",Spese[[#This Row],[Importo]]*4,IF(Spese[[#This Row],[Frequenza]]=\"Trimestrale\",Spese[[#This Row],[Importo]]/3,IF(Spese[[#This Row],[Frequenza]]=\"Semestrale\",Spese[[#This Row],[Importo]]/6,IF(Spese[[#This Row],[Frequenza]]=\"Annuale\",Spese[[#This Row],[Importo]]/12,IF(Spese[[#This Row],[Frequenza]]=\"Settimane alterne\",Spese[[#This Row],[Importo]]*2,IF(Spese[[#This Row],[Frequenza]]=\"Mesi alterni \",Spese[[#This Row],[Importo]]/2,\"\"))))))),0),\"\"),\"\")","v":{"v":100,"d":"€ 100"}},{"$f":"IF(Spese[Importo mensile]<>\"\",Spese[Importo mensile]/Entrate,\"\")","v":{"v":0.01742767514813524,"d":"2%"}}]
[null,"Rata auto","Trasporti",{"v":200,"d":"€ 200"},"Mensile",{"$f":"IF(Spese[[#This Row],[Importo]]>0,IF(Spese[[#This Row],[Frequenza]]<>\"\",ROUND(IF(Spese[[#This Row],[Frequenza]]=\"Mensile\",Spese[Importo],IF(Spese[[#This Row],[Frequenza]]=\"Settimanale\",Spese[[#This Row],[Importo]]*4,IF(Spese[[#This Row],[Frequenza]]=\"Trimestrale\",Spese[[#This Row],[Importo]]/3,IF(Spese[[#This Row],[Frequenza]]=\"Semestrale\",Spese[[#This Row],[Importo]]/6,IF(Spese[[#This Row],[Frequenza]]=\"Annuale\",Spese[[#This Row],[Importo]]/12,IF(Spese[[#This Row],[Frequenza]]=\"Settimane alterne\",Spese[[#This Row],[Importo]]*2,IF(Spese[[#This Row],[Frequenza]]=\"Mesi alterni \",Spese[[#This Row],[Importo]]/2,\"\"))))))),0),\"\"),\"\")","v":{"v":200,"d":"€ 200"}},{"$f":"IF(Spese[Importo mensile]<>\"\",Spese[Importo mensile]/Entrate,\"\")","v":{"v":0.03485535029627048,"d":"3%"}}]
[null,"Mutuo","Casa",{"v":1600,"d":"€ 1,600"},"Mensile",{"$f":"IF(Spese[[#This Row],[Importo]]>0,IF(Spese[[#This Row],[Frequenza]]<>\"\",ROUND(IF(Spese[[#This Row],[Frequenza]]=\"Mensile\",Spese[Importo],IF(Spese[[#This Row],[Frequenza]]=\"Settimanale\",Spese[[#This Row],[Importo]]*4,IF(Spese[[#This Row],[Frequenza]]=\"Trimestrale\",Spese[[#This Row],[Importo]]/3,IF(Spese[[#This Row],[Frequenza]]=\"Semestrale\",Spese[[#This Row],[Importo]]/6,IF(Spese[[#This Row],[Frequenza]]=\"Annuale\",Spese[[#This Row],[Importo]]/12,IF(Spese[[#This Row],[Frequenza]]=\"Settimane alterne\",Spese[[#This Row],[Importo]]*2,IF(Spese[[#This Row],[Frequenza]]=\"Mesi alterni \",Spese[[#This Row],[Importo]]/2,\"\"))))))),0),\"\"),\"\")","v":{"v":1600,"d":"€ 1,600"}},{"$f":"IF(Spese[Importo mensile]<>\"\",Spese[Importo mensile]/Entrate,\"\")","v":{"v":0.27884280237016384,"d":"28%"}}]
[null,"TV via cavo","Casa",{"v":60,"d":"€ 60"},"Mensile",{"$f":"IF(Spese[[#This Row],[Importo]]>0,IF(Spese[[#This Row],[Frequenza]]<>\"\",ROUND(IF(Spese[[#This Row],[Frequenza]]=\"Mensile\",Spese[Importo],IF(Spese[[#This Row],[Frequenza]]=\"Settimanale\",Spese[[#This Row],[Importo]]*4,IF(Spese[[#This Row],[Frequenza]]=\"Trimestrale\",Spese[[#This Row],[Importo]]/3,IF(Spese[[#This Row],[Frequenza]]=\"Semestrale\",Spese[[#This Row],[Importo]]/6,IF(Spese[[#This Row],[Frequenza]]=\"Annuale\",Spese[[#This Row],[Importo]]/12,IF(Spese[[#This Row],[Frequenza]]=\"Settimane alterne\",Spese[[#This Row],[Importo]]*2,IF(Spese[[#This Row],[Frequenza]]=\"Mesi alterni \",Spese[[#This Row],[Importo]]/2,\"\"))))))),0),\"\"),\"\")","v":{"v":60,"d":"€ 60"}},{"$f":"IF(Spese[Importo mensile]<>\"\",Spese[Importo mensile]/Entrate,\"\")","v":{"v":0.010456605088881143,"d":"1%"}}]
[null,"Cinema","Intrattenimento",{"v":70,"d":"€ 70"},"Mensile",{"$f":"IF(Spese[[#This Row],[Importo]]>0,IF(Spese[[#This Row],[Frequenza]]<>\"\",ROUND(IF(Spese[[#This Row],[Frequenza]]=\"Mensile\",Spese[Importo],IF(Spese[[#This Row],[Frequenza]]=\"Settimanale\",Spese[[#This Row],[Importo]]*4,IF(Spese[[#This Row],[Frequenza]]=\"Trimestrale\",Spese[[#This Row],[Importo]]/3,IF(Spese[[#This Row],[Frequenza]]=\"Semestrale\",Spese[[#This Row],[Importo]]/6,IF(Spese[[#This Row],[Frequenza]]=\"Annuale\",Spese[[#This Row],[Importo]]/12,IF(Spese[[#This Row],[Frequenza]]=\"Settimane alterne\",Spese[[#This Row],[Importo]]*2,IF(Spese[[#This Row],[Frequenza]]=\"Mesi alterni \",Spese[[#This Row],[Importo]]/2,\"\"))))))),0),\"\"),\"\")","v":{"v":70,"d":"€ 70"}},{"$f":"IF(Spese[Importo mensile]<>\"\",Spese[Importo mensile]/Entrate,\"\")","v":{"v":0.012199372603694667,"d":"1%"}}]
[null,"Scarpe da ginnastica","Varie",{"v":300,"d":"€ 300"},"Annuale",{"$f":"IF(Spese[[#This Row],[Importo]]>0,IF(Spese[[#This Row],[Frequenza]]<>\"\",ROUND(IF(Spese[[#This Row],[Frequenza]]=\"Mensile\",Spese[Importo],IF(Spese[[#This Row],[Frequenza]]=\"Settimanale\",Spese[[#This Row],[Importo]]*4,IF(Spese[[#This Row],[Frequenza]]=\"Trimestrale\",Spese[[#This Row],[Importo]]/3,IF(Spese[[#This Row],[Frequenza]]=\"Semestrale\",Spese[[#This Row],[Importo]]/6,IF(Spese[[#This Row],[Frequenza]]=\"Annuale\",Spese[[#This Row],[Importo]]/12,IF(Spese[[#This Row],[Frequenza]]=\"Settimane alterne\",Spese[[#This Row],[Importo]]*2,IF(Spese[[#This Row],[Frequenza]]=\"Mesi alterni \",Spese[[#This Row],[Importo]]/2,\"\"))))))),0),\"\"),\"\")","v":{"v":25,"d":"€ 25"}},{"$f":"IF(Spese[Importo mensile]<>\"\",Spese[Importo mensile]/Entrate,\"\")","v":{"v":0.00435691878703381,"d":"0%"}}]
[null,"Cibo per cani","Varie",{"v":60,"d":"€ 60"},"Mensile",{"$f":"IF(Spese[[#This Row],[Importo]]>0,IF(Spese[[#This Row],[Frequenza]]<>\"\",ROUND(IF(Spese[[#This Row],[Frequenza]]=\"Mensile\",Spese[Importo],IF(Spese[[#This Row],[Frequenza]]=\"Settimanale\",Spese[[#This Row],[Importo]]*4,IF(Spese[[#This Row],[Frequenza]]=\"Trimestrale\",Spese[[#This Row],[Importo]]/3,IF(Spese[[#This Row],[Frequenza]]=\"Semestrale\",Spese[[#This Row],[Importo]]/6,IF(Spese[[#This Row],[Frequenza]]=\"Annuale\",Spese[[#This Row],[Importo]]/12,IF(Spese[[#This Row],[Frequenza]]=\"Settimane alterne\",Spese[[#This Row],[Importo]]*2,IF(Spese[[#This Row],[Frequenza]]=\"Mesi alterni \",Spese[[#This Row],[Importo]]/2,\"\"))))))),0),\"\"),\"\")","v":{"v":60,"d":"€ 60"}},{"$f":"IF(Spese[Importo mensile]<>\"\",Spese[Importo mensile]/Entrate,\"\")","v":{"v":0.010456605088881143,"d":"1%"}}]
[null,"Assicurazione animale domestico","Varie",{"v":70,"d":"€ 70"},"Annuale",{"$f":"IF(Spese[[#This Row],[Importo]]>0,IF(Spese[[#This Row],[Frequenza]]<>\"\",ROUND(IF(Spese[[#This Row],[Frequenza]]=\"Mensile\",Spese[Importo],IF(Spese[[#This Row],[Frequenza]]=\"Settimanale\",Spese[[#This Row],[Importo]]*4,IF(Spese[[#This Row],[Frequenza]]=\"Trimestrale\",Spese[[#This Row],[Importo]]/3,IF(Spese[[#This Row],[Frequenza]]=\"Semestrale\",Spese[[#This Row],[Importo]]/6,IF(Spese[[#This Row],[Frequenza]]=\"Annuale\",Spese[[#This Row],[Importo]]/12,IF(Spese[[#This Row],[Frequenza]]=\"Settimane alterne\",Spese[[#This Row],[Importo]]*2,IF(Spese[[#This Row],[Frequenza]]=\"Mesi alterni \",Spese[[#This Row],[Importo]]/2,\"\"))))))),0),\"\"),\"\")","v":{"v":6,"d":"€ 6"}},{"$f":"IF(Spese[Importo mensile]<>\"\",Spese[Importo mensile]/Entrate,\"\")","v":{"v":1.0456605088881143E-3,"d":"0%"}}]
[null,"Generi alimentari","Alimentari",{"v":100,"d":"€ 100"},"Settimanale",{"$f":"IF(Spese[[#This Row],[Importo]]>0,IF(Spese[[#This Row],[Frequenza]]<>\"\",ROUND(IF(Spese[[#This Row],[Frequenza]]=\"Mensile\",Spese[Importo],IF(Spese[[#This Row],[Frequenza]]=\"Settimanale\",Spese[[#This Row],[Importo]]*4,IF(Spese[[#This Row],[Frequenza]]=\"Trimestrale\",Spese[[#This Row],[Importo]]/3,IF(Spese[[#This Row],[Frequenza]]=\"Semestrale\",Spese[[#This Row],[Importo]]/6,IF(Spese[[#This Row],[Frequenza]]=\"Annuale\",Spese[[#This Row],[Importo]]/12,IF(Spese[[#This Row],[Frequenza]]=\"Settimane alterne\",Spese[[#This Row],[Importo]]*2,IF(Spese[[#This Row],[Frequenza]]=\"Mesi alterni \",Spese[[#This Row],[Importo]]/2,\"\"))))))),0),\"\"),\"\")","v":{"v":400,"d":"€ 400"}},{"$f":"IF(Spese[Importo mensile]<>\"\",Spese[Importo mensile]/Entrate,\"\")","v":{"v":0.06971070059254096,"d":"7%"}}]
[null,"Caffè","Alimentari",{"v":25,"d":"€ 25"},"Settimanale",{"$f":"IF(Spese[[#This Row],[Importo]]>0,IF(Spese[[#This Row],[Frequenza]]<>\"\",ROUND(IF(Spese[[#This Row],[Frequenza]]=\"Mensile\",Spese[Importo],IF(Spese[[#This Row],[Frequenza]]=\"Settimanale\",Spese[[#This Row],[Importo]]*4,IF(Spese[[#This Row],[Frequenza]]=\"Trimestrale\",Spese[[#This Row],[Importo]]/3,IF(Spese[[#This Row],[Frequenza]]=\"Semestrale\",Spese[[#This Row],[Importo]]/6,IF(Spese[[#This Row],[Frequenza]]=\"Annuale\",Spese[[#This Row],[Importo]]/12,IF(Spese[[#This Row],[Frequenza]]=\"Settimane alterne\",Spese[[#This Row],[Importo]]*2,IF(Spese[[#This Row],[Frequenza]]=\"Mesi alterni \",Spese[[#This Row],[Importo]]/2,\"\"))))))),0),\"\"),\"\")","v":{"v":100,"d":"€ 100"}},{"$f":"IF(Spese[Importo mensile]<>\"\",Spese[Importo mensile]/Entrate,\"\")","v":{"v":0.01742767514813524,"d":"2%"}}]
[null,"Attrezzatura per arrampicata","Intrattenimento",{"v":170,"d":"€ 170"},"Annuale",{"$f":"IF(Spese[[#This Row],[Importo]]>0,IF(Spese[[#This Row],[Frequenza]]<>\"\",ROUND(IF(Spese[[#This Row],[Frequenza]]=\"Mensile\",Spese[Importo],IF(Spese[[#This Row],[Frequenza]]=\"Settimanale\",Spese[[#This Row],[Importo]]*4,IF(Spese[[#This Row],[Frequenza]]=\"Trimestrale\",Spese[[#This Row],[Importo]]/3,IF(Spese[[#This Row],[Frequenza]]=\"Semestrale\",Spese[[#This Row],[Importo]]/6,IF(Spese[[#This Row],[Frequenza]]=\"Annuale\",Spese[[#This Row],[Importo]]/12,IF(Spese[[#This Row],[Frequenza]]=\"Settimane alterne\",Spese[[#This Row],[Importo]]*2,IF(Spese[[#This Row],[Frequenza]]=\"Mesi alterni \",Spese[[#This Row],[Importo]]/2,\"\"))))))),0),\"\"),\"\")","v":{"v":14,"d":"€ 14"}},{"$f":"IF(Spese[Importo mensile]<>\"\",Spese[Importo mensile]/Entrate,\"\")","v":{"v":2.4398745207389336E-3,"d":"0%"}}]
[null,"Iscrizione in palestra","Varie",{"v":60,"d":"€ 60"},"Mensile",{"$f":"IF(Spese[[#This Row],[Importo]]>0,IF(Spese[[#This Row],[Frequenza]]<>\"\",ROUND(IF(Spese[[#This Row],[Frequenza]]=\"Mensile\",Spese[Importo],IF(Spese[[#This Row],[Frequenza]]=\"Settimanale\",Spese[[#This Row],[Importo]]*4,IF(Spese[[#This Row],[Frequenza]]=\"Trimestrale\",Spese[[#This Row],[Importo]]/3,IF(Spese[[#This Row],[Frequenza]]=\"Semestrale\",Spese[[#This Row],[Importo]]/6,IF(Spese[[#This Row],[Frequenza]]=\"Annuale\",Spese[[#This Row],[Importo]]/12,IF(Spese[[#This Row],[Frequenza]]=\"Settimane alterne\",Spese[[#This Row],[Importo]]*2,IF(Spese[[#This Row],[Frequenza]]=\"Mesi alterni \",Spese[[#This Row],[Importo]]/2,\"\"))))))),0),\"\"),\"\")","v":{"v":60,"d":"€ 60"}},{"$f":"IF(Spese[Importo mensile]<>\"\",Spese[Importo mensile]/Entrate,\"\")","v":{"v":0.010456605088881143,"d":"1%"}}]
[null,"Cuffie","Intrattenimento",{"v":50,"d":"€ 50"},"Annuale",{"$f":"IF(Spese[[#This Row],[Importo]]>0,IF(Spese[[#This Row],[Frequenza]]<>\"\",ROUND(IF(Spese[[#This Row],[Frequenza]]=\"Mensile\",Spese[Importo],IF(Spese[[#This Row],[Frequenza]]=\"Settimanale\",Spese[[#This Row],[Importo]]*4,IF(Spese[[#This Row],[Frequenza]]=\"Trimestrale\",Spese[[#This Row],[Importo]]/3,IF(Spese[[#This Row],[Frequenza]]=\"Semestrale\",Spese[[#This Row],[Importo]]/6,IF(Spese[[#This Row],[Frequenza]]=\"Annuale\",Spese[[#This Row],[Importo]]/12,IF(Spese[[#This Row],[Frequenza]]=\"Settimane alterne\",Spese[[#This Row],[Importo]]*2,IF(Spese[[#This Row],[Frequenza]]=\"Mesi alterni \",Spese[[#This Row],[Importo]]/2,\"\"))))))),0),\"\"),\"\")","v":{"v":4,"d":"€ 4"}},{"$f":"IF(Spese[Importo mensile]<>\"\",Spese[Importo mensile]/Entrate,\"\")","v":{"v":6.9710700592540956E-4,"d":"0%"}}]
[null,"Parrucchiere","Varie",{"v":70,"d":"€ 70"},"Mensile",{"$f":"IF(Spese[[#This Row],[Importo]]>0,IF(Spese[[#This Row],[Frequenza]]<>\"\",ROUND(IF(Spese[[#This Row],[Frequenza]]=\"Mensile\",Spese[Importo],IF(Spese[[#This Row],[Frequenza]]=\"Settimanale\",Spese[[#This Row],[Importo]]*4,IF(Spese[[#This Row],[Frequenza]]=\"Trimestrale\",Spese[[#This Row],[Importo]]/3,IF(Spese[[#This Row],[Frequenza]]=\"Semestrale\",Spese[[#This Row],[Importo]]/6,IF(Spese[[#This Row],[Frequenza]]=\"Annuale\",Spese[[#This Row],[Importo]]/12,IF(Spese[[#This Row],[Frequenza]]=\"Settimane alterne\",Spese[[#This Row],[Importo]]*2,IF(Spese[[#This Row],[Frequenza]]=\"Mesi alterni \",Spese[[#This Row],[Importo]]/2,\"\"))))))),0),\"\"),\"\")","v":{"v":70,"d":"€ 70"}},{"$f":"IF(Spese[Importo mensile]<>\"\",Spese[Importo mensile]/Entrate,\"\")","v":{"v":0.012199372603694667,"d":"1%"}}]
[null,"Videogiochi","Intrattenimento",{"v":100,"d":"€ 100"},"Mensile",{"$f":"IF(Spese[[#This Row],[Importo]]>0,IF(Spese[[#This Row],[Frequenza]]<>\"\",ROUND(IF(Spese[[#This Row],[Frequenza]]=\"Mensile\",Spese[Importo],IF(Spese[[#This Row],[Frequenza]]=\"Settimanale\",Spese[[#This Row],[Importo]]*4,IF(Spese[[#This Row],[Frequenza]]=\"Trimestrale\",Spese[[#This Row],[Importo]]/3,IF(Spese[[#This Row],[Frequenza]]=\"Semestrale\",Spese[[#This Row],[Importo]]/6,IF(Spese[[#This Row],[Frequenza]]=\"Annuale\",Spese[[#This Row],[Importo]]/12,IF(Spese[[#This Row],[Frequenza]]=\"Settimane alterne\",Spese[[#This Row],[Importo]]*2,IF(Spese[[#This Row],[Frequenza]]=\"Mesi alterni \",Spese[[#This Row],[Importo]]/2,\"\"))))))),0),\"\"),\"\")","v":{"v":100,"d":"€ 100"}},{"$f":"IF(Spese[Importo mensile]<>\"\",Spese[Importo mensile]/Entrate,\"\")","v":{"v":0.01742767514813524,"d":"2%"}}]
[null,"Vestiti","Varie",{"v":500,"d":"€ 500"},"Annuale",{"$f":"IF(Spese[[#This Row],[Importo]]>0,IF(Spese[[#This Row],[Frequenza]]<>\"\",ROUND(IF(Spese[[#This Row],[Frequenza]]=\"Mensile\",Spese[Importo],IF(Spese[[#This Row],[Frequenza]]=\"Settimanale\",Spese[[#This Row],[Importo]]*4,IF(Spese[[#This Row],[Frequenza]]=\"Trimestrale\",Spese[[#This Row],[Importo]]/3,IF(Spese[[#This Row],[Frequenza]]=\"Semestrale\",Spese[[#This Row],[Importo]]/6,IF(Spese[[#This Row],[Frequenza]]=\"Annuale\",Spese[[#This Row],[Importo]]/12,IF(Spese[[#This Row],[Frequenza]]=\"Settimane alterne\",Spese[[#This Row],[Importo]]*2,IF(Spese[[#This Row],[Frequenza]]=\"Mesi alterni \",Spese[[#This Row],[Importo]]/2,\"\"))))))),0),\"\"),\"\")","v":{"v":42,"d":"€ 42"}},{"$f":"IF(Spese[Importo mensile]<>\"\",Spese[Importo mensile]/Entrate,\"\")","v":{"v":7.3196235622168E-3,"d":"1%"}}]

{"sheet":"Dati","index":2,"n_rows":10,"n_cols":5,"rows_kept":10,"hidden":true}
["Questo foglio deve rimanere nascosto"]
["Categorie","Importo per categoria","Percentuale del totale","Frequenza","Risparmi"]
["Casa",{"$f":"IF(SUMIF(Spese[Categoria],\"Casa\",Spese[Importo mensile])>0,SUMIF(Spese[Categoria],\"Casa\",Spese[Importo mensile]),NA())","v":{"v":1660,"d":"€ 1,660"}},{"$f":"IF(B3>0,B3/Entrate,\"\")","v":{"v":0.289299407459045,"d":"29%"}},"Settimanale",{"$f":"Entrate-SUM(Spese[Importo mensile])","v":{"v":2777,"d":"€ 2,777"}}]
["Intrattenimento",{"$f":"IF(SUMIF(Spese[Categoria],\"Intrattenimento\",Spese[Importo mensile])>0,SUMIF(Spese[Categoria],\"Intrattenimento\",Spese[Importo mensile]),NA())","v":{"v":188,"d":"€ 188"}},{"v":0.03276402927849425,"d":"3%"},"Mensile"]
["Trasporti",{"$f":"IF(SUMIF(Spese[Categoria],\"Trasporti\",Spese[Importo mensile])>0,SUMIF(Spese[Categoria],\"Trasporti\",Spese[Importo mensile]),NA())","v":{"v":350,"d":"€ 350"}},{"v":0.06099686301847333,"d":"6%"},"Trimestrale"]
["Alimentari",{"$f":"IF(SUMIF(Spese[Categoria],\"Alimentari\",Spese[Importo mensile])>0,SUMIF(Spese[Categoria],\"Alimentari\",Spese[Importo mensile]),NA())","v":{"v":500,"d":"€ 500"}},{"v":0.08713837574067619,"d":"9%"},"Semestrale"]
["Varie",{"$f":"IF(SUMIF(Spese[Categoria],\"Varie\",Spese[Importo mensile])>0,SUMIF(Spese[Categoria],\"Varie\",Spese[Importo mensile]),NA())","v":{"v":263,"d":"€ 263"}},{"v":0.04583478563959568,"d":"5%"},"Annuale"]
["Risparmi",{"$f":"IF(E3>0,E3,NA())","v":{"v":2777,"d":"€ 2,777"}},{"v":0.4839665388637156,"d":"48%"},"Settimane alterne"]
[{"$nulls":3},"Mesi alterni "]
[null,"TOTALE:",{"$f":"SUM(C3:C8)","v":{"v":1,"d":"100%"}}]